{"text_format":"1","workbook":"xlsx","n_sheets":2,"sheets":["Инструкции и настройка","12 сентября"],"not_rendered":{"charts":0,"images":0,"macros":1,"external_links":1,"defined_names":13,"comments":0,"pivot_tables":0},"unopened":[],"bounds":{"document_bytes":16777216,"sheet_cells":100000,"rows_first":2000,"rows_last":500,"rows_between":2000,"halvings":0,"cell_chars":16384,"cell_head_chars":4096},"cells_cut":0,"cells_raw":0,"read":"whole","date_system":"1900"}

{"sheet":"Инструкции и настройка","index":0,"n_rows":23,"n_cols":9,"rows_kept":23,"cut":false,"hidden":false,"merged":[[3,2,3,4],[5,2,5,4],[7,2,7,4],[9,2,9,4],[3,7,3,8],[5,7,5,8],[7,7,7,8],[9,7,9,8],[11,7,11,8],[4,7,4,8],[6,7,6,8],[8,7,8,8],[10,7,10,8]]}
[]
[null,"Инструкции и настройка"]
[]
[null,1,"В таблице \"Предметы\" ниже введите названия предметов, которые нужно отслеживать с помощью этого расписания.",null,null,null,5,"Введите дату начала расписания в ячейку A5."]
[]
[null,2,"В таблице \"Типы занятий\", которая также находится ниже, измените примеры типов занятий в соответствии с конкретными требованиями. ",null,null,null,6,"В строке 4 с помощью раскрывающегося списка можно добавить занятия в расписание. "]
[]
[null,3,"В ячейке I14 укажите количество строк, которые нужно использовать для отслеживания домашних заданий.",null,null,null,7,"Под каждым занятием добавьте задания в столбце Задания."]
[]
[null,4,"На листе расписания, например за 12 сентября, выполните действия с 5 по 9.",null,null,null,8,"Укажите оценку времени на выполнение каждого задания в соответствующем столбце со значком часов."]
[]
[null,null,null,null,null,null,9,"После выполнения задания дважды щелкните в столбце с флажком рядом с заданием."]
[]
[null,null,"Предметы",null,"Типы занятий",null,null,"Количество строк на каждый день:",5]
[null,null,"Математика",null,"Обсуждение"]
[null,null,"Английский язык",null,"Лабораторная работа"]
[null,null,"Французский язык",null,"Лекция"]
[null,null,"Естественные науки",null,"Опрос"]
[null,null,"История",null,"Чтение"]
[null,null,null,null,"Анализ"]
[null,null,null,null,"Протокол исследования"]
[null,null,null,null,"Обзор"]
[null,null,null,null,"Исследование"]

{"sheet":"12 сентября","index":1,"n_rows":103,"n_cols":24,"rows_kept":103,"cut":false,"hidden":false,"merged":[]}
[]
[null,"Домашняя работа"]
[]
[null,"Введите\nдату начала","Итого"," Предмет:",null,"Математика"," Предмет:",null,"Английский язык"," Предмет:",null,"Французский язык"," Предмет:",null,"Естественные науки"," Предмет:",null,null," Предмет:",null,null," Предмет:"]
[null,"2011-09-12",null,null,null,"ЗАДАНИЕ",null,null,"ЗАДАНИЕ",null,null,"ЗАДАНИЕ",null,null,"ЗАДАНИЕ",null,null,"ЗАДАНИЕ",null,null,"ЗАДАНИЕ",null,null,"ЗАДАНИЕ"]
[]
[null,{"$f":"ДеньРасписания","v":"2011-09-12"},{"$f":"ПочасовыеИтогиЗаДень","v":6.5},1,1.5,"Чтение",1,2,"Исследование",null,1,"Чтение",1,1,"Опрос"]
[null,{"$f":"ДеньРасписания","v":""},{"$f":"ПочасовыеИтогиЗаДень","v":""},1,1,"Обзор"]
[null,{"$f":"ДеньРасписания","v":""},{"$f":"ПочасовыеИтогиЗаДень","v":""}]
[null,{"$f":"ДеньРасписания","v":""},{"$f":"ПочасовыеИтогиЗаДень","v":""}]
[null,{"$f":"ДеньРасписания","v":""},{"$f":"ПочасовыеИтогиЗаДень","v":""}]
[null,{"$f":"ДеньРасписания","v":"2011-09-13"},{"$f":"ПочасовыеИтогиЗаДень","v":0}]
[null,{"$f":"ДеньРасписания","v":""},{"$f":"ПочасовыеИтогиЗаДень","v":""}]
[null,{"$f":"ДеньРасписания","v":""},{"$f":"ПочасовыеИтогиЗаДень","v":""}]
[null,{"$f":"ДеньРасписания","v":""},{"$f":"ПочасовыеИтогиЗаДень","v":""}]
[null,{"$f":"ДеньРасписания","v":""},{"$f":"ПочасовыеИтогиЗаДень","v":""}]
[null,{"$f":"ДеньРасписания","v":"2011-09-14"},{"$f":"ПочасовыеИтогиЗаДень","v":0}]
[null,{"$f":"ДеньРасписания","v":""},{"$f":"ПочасовыеИтогиЗаДень","v":""}]
[null,{"$f":"ДеньРасписания","v":""},{"$f":"ПочасовыеИтогиЗаДень","v":""}]
[null,{"$f":"ДеньРасписания","v":""},{"$f":"ПочасовыеИтогиЗаДень","v":""}]
[null,{"$f":"ДеньРасписания","v":""},{"$f":"ПочасовыеИтогиЗаДень","v":""}]
[null,{"$f":"ДеньРасписания","v":"2011-09-15"},{"$f":"ПочасовыеИтогиЗаДень","v":0}]
[null,{"$f":"ДеньРасписания","v":""},{"$f":"ПочасовыеИтогиЗаДень","v":""}]
[null,{"$f":"ДеньРасписания","v":""},{"$f":"ПочасовыеИтогиЗаДень","v":""}]
[null,{"$f":"ДеньРасписания","v":""},{"$f":"ПочасовыеИтогиЗаДень","v":""}]
[null,{"$f":"ДеньРасписания","v":""},{"$f":"ПочасовыеИтогиЗаДень","v":""}]
[null,{"$f":"ДеньРасписания","v":"2011-09-16"},{"$f":"ПочасовыеИтогиЗаДень","v":0}]
[null,{"$f":"ДеньРасписания","v":""},{"$f":"ПочасовыеИтогиЗаДень","v":""}]
[null,{"$f":"ДеньРасписания","v":""},{"$f":"ПочасовыеИтогиЗаДень","v":""}]
[null,{"$f":"ДеньРасписания","v":""},{"$f":"ПочасовыеИтогиЗаДень","v":""}]
[null,{"$f":"ДеньРасписания","v":""},{"$f":"ПочасовыеИтогиЗаДень","v":""}]
[null,{"$f":"ДеньРасписания","v":"2011-09-17"},{"$f":"ПочасовыеИтогиЗаДень","v":0}]
[null,{"$f":"ДеньРасписания","v":""},{"$f":"ПочасовыеИтогиЗаДень","v":""}]
[null,{"$f":"ДеньРасписания","v":""},{"$f":"ПочасовыеИтогиЗаДень","v":""}]
[null,{"$f":"ДеньРасписания","v":""},{"$f":"ПочасовыеИтогиЗаДень","v":""}]
[null,{"$f":"ДеньРасписания","v":""},{"$f":"ПочасовыеИтогиЗаДень","v":""}]
[null,{"$f":"ДеньРасписания","v":"2011-09-18"},{"$f":"ПочасовыеИтогиЗаДень","v":0}]
[null,{"$f":"ДеньРасписания","v":""},{"$f":"ПочасовыеИтогиЗаДень","v":""}]
[null,{"$f":"ДеньРасписания","v":""},{"$f":"ПочасовыеИтогиЗаДень","v":""}]
[null,{"$f":"ДеньРасписания","v":""},{"$f":"ПочасовыеИтогиЗаДень","v":""}]
[null,{"$f":"ДеньРасписания","v":""},{"$f":"ПочасовыеИтогиЗаДень","v":""}]
[null,{"$f":"ДеньРасписания","v":""},{"$f":"ПочасовыеИтогиЗаДень","v":""}]
[null,{"$f":"ДеньРасписания","v":""},{"$f":"ПочасовыеИтогиЗаДень","v":""}]
[null,{"$f":"ДеньРасписания","v":""},{"$f":"ПочасовыеИтогиЗаДень","v":""}]
[null,{"$f":"ДеньРасписания","v":""},{"$f":"ПочасовыеИтогиЗаДень","v":""}]
[null,{"$f":"ДеньРасписания","v":""},{"$f":"ПочасовыеИтогиЗаДень","v":""}]
[null,{"$f":"ДеньРасписания","v":""},{"$f":"ПочасовыеИтогиЗаДень","v":""}]
[null,{"$f":"ДеньРасписания","v":""},{"$f":"ПочасовыеИтогиЗаДень","v":""}]
[null,{"$f":"ДеньРасписания","v":""},{"$f":"ПочасовыеИтогиЗаДень","v":""}]
[null,{"$f":"ДеньРасписания","v":""},{"$f":"ПочасовыеИтогиЗаДень","v":""}]
[null,{"$f":"ДеньРасписания","v":""},{"$f":"ПочасовыеИтогиЗаДень","v":""}]
[null,{"$f":"ДеньРасписания","v":""},{"$f":"ПочасовыеИтогиЗаДень","v":""}]
[null,{"$f":"ДеньРасписания","v":""},{"$f":"ПочасовыеИтогиЗаДень","v":""}]
[null,{"$f":"ДеньРасписания","v":""},{"$f":"ПочасовыеИтогиЗаДень","v":""}]
[null,{"$f":"ДеньРасписания","v":""},{"$f":"ПочасовыеИтогиЗаДень","v":""}]
[null,{"$f":"ДеньРасписания","v":""},{"$f":"ПочасовыеИтогиЗаДень","v":""}]
[null,{"$f":"ДеньРасписания","v":""},{"$f":"ПочасовыеИтогиЗаДень","v":""}]
[null,{"$f":"ДеньРасписания","v":""},{"$f":"ПочасовыеИтогиЗаДень","v":""}]
[null,{"$f":"ДеньРасписания","v":""},{"$f":"ПочасовыеИтогиЗаДень","v":""}]
[null,{"$f":"ДеньРасписания","v":""},{"$f":"ПочасовыеИтогиЗаДень","v":""}]
[null,{"$f":"ДеньРасписания","v":""},{"$f":"ПочасовыеИтогиЗаДень","v":""}]
[null,{"$f":"ДеньРасписания","v":""},{"$f":"ПочасовыеИтогиЗаДень","v":""}]
[null,{"$f":"ДеньРасписания","v":""},{"$f":"ПочасовыеИтогиЗаДень","v":""}]
[null,{"$f":"ДеньРасписания","v":""},{"$f":"ПочасовыеИтогиЗаДень","v":""}]
[null,{"$f":"ДеньРасписания","v":""},{"$f":"ПочасовыеИтогиЗаДень","v":""}]
[null,{"$f":"ДеньРасписания","v":""},{"$f":"ПочасовыеИтогиЗаДень","v":""}]
[null,{"$f":"ДеньРасписания","v":""},{"$f":"ПочасовыеИтогиЗаДень","v":""}]
[null,{"$f":"ДеньРасписания","v":""},{"$f":"ПочасовыеИтогиЗаДень","v":""}]
[null,{"$f":"ДеньРасписания","v":""},{"$f":"ПочасовыеИтогиЗаДень","v":""}]
[null,{"$f":"ДеньРасписания","v":""},{"$f":"ПочасовыеИтогиЗаДень","v":""}]
[null,{"$f":"ДеньРасписания","v":""},{"$f":"ПочасовыеИтогиЗаДень","v":""}]
[null,{"$f":"ДеньРасписания","v":""},{"$f":"ПочасовыеИтогиЗаДень","v":""}]
[null,{"$f":"ДеньРасписания","v":""},{"$f":"ПочасовыеИтогиЗаДень","v":""}]
[null,{"$f":"ДеньРасписания","v":""},{"$f":"ПочасовыеИтогиЗаДень","v":""}]
[null,{"$f":"ДеньРасписания","v":""},{"$f":"ПочасовыеИтогиЗаДень","v":""}]
[null,{"$f":"ДеньРасписания","v":""},{"$f":"ПочасовыеИтогиЗаДень","v":""}]
[null,{"$f":"ДеньРасписания","v":""},{"$f":"ПочасовыеИтогиЗаДень","v":""}]
[null,{"$f":"ДеньРасписания","v":""},{"$f":"ПочасовыеИтогиЗаДень","v":""}]
[null,{"$f":"ДеньРасписания","v":""},{"$f":"ПочасовыеИтогиЗаДень","v":""}]
[null,{"$f":"ДеньРасписания","v":""},{"$f":"ПочасовыеИтогиЗаДень","v":""}]
[null,{"$f":"ДеньРасписания","v":""},{"$f":"ПочасовыеИтогиЗаДень","v":""}]
[null,{"$f":"ДеньРасписания","v":""},{"$f":"ПочасовыеИтогиЗаДень","v":""}]
[null,{"$f":"ДеньРасписания","v":""},{"$f":"ПочасовыеИтогиЗаДень","v":""}]
[null,{"$f":"ДеньРасписания","v":""},{"$f":"ПочасовыеИтогиЗаДень","v":""}]
[null,{"$f":"ДеньРасписания","v":""},{"$f":"ПочасовыеИтогиЗаДень","v":""}]
[null,{"$f":"ДеньРасписания","v":""},{"$f":"ПочасовыеИтогиЗаДень","v":""}]
[null,{"$f":"ДеньРасписания","v":""},{"$f":"ПочасовыеИтогиЗаДень","v":""}]
[null,{"$f":"ДеньРасписания","v":""},{"$f":"ПочасовыеИтогиЗаДень","v":""}]
[null,{"$f":"ДеньРасписания","v":""},{"$f":"ПочасовыеИтогиЗаДень","v":""}]
[null,{"$f":"ДеньРасписания","v":""},{"$f":"ПочасовыеИтогиЗаДень","v":""}]
[null,{"$f":"ДеньРасписания","v":""},{"$f":"ПочасовыеИтогиЗаДень","v":""}]
[null,{"$f":"ДеньРасписания","v":""},{"$f":"ПочасовыеИтогиЗаДень","v":""}]
[null,{"$f":"ДеньРасписания","v":""},{"$f":"ПочасовыеИтогиЗаДень","v":""}]
[null,{"$f":"ДеньРасписания","v":""},{"$f":"ПочасовыеИтогиЗаДень","v":""}]
[null,{"$f":"ДеньРасписания","v":""},{"$f":"ПочасовыеИтогиЗаДень","v":""}]
[null,{"$f":"ДеньРасписания","v":""},{"$f":"ПочасовыеИтогиЗаДень","v":""}]
[null,{"$f":"ДеньРасписания","v":""},{"$f":"ПочасовыеИтогиЗаДень","v":""}]
[null,{"$f":"ДеньРасписания","v":""},{"$f":"ПочасовыеИтогиЗаДень","v":""}]
[null,{"$f":"ДеньРасписания","v":""},{"$f":"ПочасовыеИтогиЗаДень","v":""}]
[null,{"$f":"ДеньРасписания","v":""},{"$f":"ПочасовыеИтогиЗаДень","v":""}]
[null,{"$f":"ДеньРасписания","v":""},{"$f":"ПочасовыеИтогиЗаДень","v":""}]
[null,{"$f":"ДеньРасписания","v":""},{"$f":"ПочасовыеИтогиЗаДень","v":""}]
[null,{"$f":"ДеньРасписания","v":""},{"$f":"ПочасовыеИтогиЗаДень","v":""}]